fUSD/lending_fUSD_20240404
["ID","MTS","AMOUNT","RATE_DAILY","PERIOD"]
[321438063,1712190678764,-3915.53,0.00054794,120]
[321438064,1712190678773,-514.24865538,0.00054794,120]
[321438065,1712190678782,-3915.53,0.00054794,120]
[321438066,1712190678791,-500.0,0.00054794,120]
[321438067,1712190678801,-3915.53,0.00054794,120]
[321438068,1712190678811,-3915.62118821,0.00054794,120]
[321438069,1712190678822,-506.96074598,0.00054794,120]
[321438070,1712190678832,-522.33257389,0.00054794,120]
[321438071,1712190678841,-500.0,0.00054794,120]
[321438072,1712190678850,-822.14,0.00054794,120]
[321438073,1712190678860,-500.0,0.00054794,120]
[321438074,1712190678869,-515.96764061,0.00054794,120]
[321438075,1712190678878,-500.0,0.00054794,120]
[321438076,1712190678888,-500.0,0.00054794,120]
[321438077,1712190678897,-500.0,0.00054794,120]
[321438078,1712190678906,-500.0,0.00054794,120]
[321438079,1712190678915,-781.02,0.00054794,120]
[321438080,1712190678926,-509.10376623,0.00054794,120]
[321438081,1712190678936,-5897.06,0.00054794,120]
[321438082,1712190678945,-500.0,0.00054794,120]
[321438083,1712190678954,-1652.9,0.00054794,2]
[321438084,1712190678963,-2179.9,0.00054794,120]
[321438085,1712190678972,-500.0,0.00054794,120]
[321438086,1712190678982,-500.0,0.00054794,120]
[321438087,1712190678991,-1037.75,0.00054794,120]
[321438088,1712190679000,-506.20642681,0.00054794,120]
[321438089,1712190679009,-3960.29,0.00054794,120]
[321438090,1712190679018,-2409.69,0.00054794,120]
[321438091,1712190679027,-674.38,0.00054794,120]
[321438092,1712190679036,-503.50830343,0.00054794,120]
[321438093,1712190679045,-500.0,0.00054794,120]
[321438094,1712190679054,-500.0,0.00054794,120]
[321438095,1712190679066,-500.0,0.00054794,120]
[321438096,1712190679076,-787.49,0.00054794,120]
[321438097,1712190679085,-507.92757659,0.00054794,120]
[321438098,1712190679095,-521.5569587,0.00054794,120]
[321438099,1712190679107,-5383.81,0.00054794,120]
[321438100,1712190679117,-2699.88,0.00054794,120]
[321438101,1712190679127,-532.35,0.00054794,120]
[321438102,1712190679136,-5238.07,0.00054794,120]
[321438103,1712190679145,-355.35908407,0.00054794,120]
[321438104,1712190679154,-1038.55,0.00054794,120]
[321438105,1712190679162,-2370.1,0.00054794,120]
[321438106,1712190679172,-500.0,0.00054794,120]
[321438107,1712190679181,-500.0,0.00054794,120]
[321438108,1712190679191,-500.0,0.00054794,120]
[321438109,1712190679200,-500.0,0.00054794,120]
[321438110,1712190679208,-510.57424273,0.00054794,120]
[321438111,1712190679217,-2844.11,0.00054794,120]
[321438112,1712190679226,-625.63,0.00054794,120]
[321438113,1712190679235,-10144.41,0.00054794,120]
[321438114,1712190679245,-500.0,0.00054794,120]
[321438115,1712190679254,-507.94580546,0.00054794,120]
[321438116,1712190679265,-500.0,0.00054794,120]
[321438117,1712190679273,-1539.91,0.00054794,120]
[321438118,1712190679283,-531.21068387,0.00054794,120]
[321438119,1712190679292,-531.76,0.00054794,120]
[321438120,1712190679301,-497.5252847,0.00054794,120]
[321438121,1712190679310,-768.38,0.00054794,120]
[321438122,1712190679319,-500.0,0.00054794,120]
[321438123,1712190679329,-500.0,0.00054794,120]
[321438124,1712190679338,-500.0,0.00054794,120]
[321438125,1712190679347,-673.34,0.00054794,120]
[321438126,1712190679358,-500.0,0.00054794,120]
[321438127,1712190679368,-1326.53,0.00054794,120]
[321438128,1712190679377,-500.0,0.00054794,120]
[321438129,1712190679386,-1381.92,0.00054794,120]
[321438130,1712190679396,-8594.77,0.00054794,120]
[321438131,1712190679405,-3387.21,0.00054794,120]
[321438132,1712190679414,-687.99,0.00054794,120]
[321438133,1712190679424,-500.0,0.00054794,120]
[321438134,1712190679433,-538.76,0.00054794,120]
[321438135,1712190679442,-500.00000055,0.00054794,120]
[321438136,1712190679452,-3858.52,0.00054794,120]
[321438137,1712190679461,-12336.87,0.00054794,120]
[321438138,1712190679470,-1028.63,0.00054794,120]
[321438139,1712190679479,-508.49403472,0.00054794,120]
[321438140,1712190679664,-703.56,0.00054794,120]
[321438141,1712190679674,-500.0,0.00054794,120]
[321438142,1712190679683,-500.0,0.00054794,120]
[321438143,1712190679693,-746.05,0.00054794,120]
[321438144,1712190679703,-1562.6,0.00054794,120]
[321438145,1712190679712,-503.77477784,0.00054794,120]
[321438146,1712190679721,-521.86471097,0.00054794,120]
[321438147,1712190679731,-500.0,0.00054794,120]
[321438148,1712190679740,-52265.13,0.00054794,120]
[321438149,1712190679750,-6683.26,0.00054794,120]
[321438150,1712190679759,-506.45615461,0.00054794,120]
[321438151,1712190679768,-500.0,0.00054794,120]
[321438152,1712190679778,-500.0,0.00054794,120]
[321438153,1712190679787,-1091.74,0.00054794,120]
[321438154,1712190679797,-1886.06,0.00054794,120]
[321438155,1712190679806,-703.82,0.00054794,120]
[321438156,1712190679815,-3304.09,0.00054794,120]
[321438157,1712190679825,-515.47059355,0.00054794,120]
[321438158,1712190679834,-1765.46,0.00054794,120]
[321438159,1712190679843,-500.0,0.00054794,120]
[321438160,1712190679852,-508.23031721,0.00054794,120]
[321438161,1712190679862,-1201.97,0.00054794,120]
[321438162,1712190679872,-500.0,0.00054794,120]
[321438163,1712190679881,-559.35,0.00054794,120]
[321438164,1712190679890,-2417.27,0.00054794,120]
[321438165,1712190679899,-640.43,0.00054794,120]
[321438166,1712190679909,-500.0,0.00054794,120]
[321438167,1712190679918,-5517.43,0.00054794,120]
[321438168,1712190679927,-636.7152615,0.00054794,120]
[321438169,1712190679936,-500.0,0.00054794,120]
[321438170,1712190679945,-1414.5,0.00054794,120]
[321438171,1712190679954,-3159.25,0.00054794,120]
[321438172,1712190679963,-609.09,0.00054794,120]
[321438173,1712190679972,-500.0,0.00054794,120]
[321438174,1712190679981,-2393.05,0.00054794,120]
[321438175,1712190679991,-500.0,0.00054794,120]
[321438176,1712190680000,-500.0,0.00054794,120]
[321438177,1712190680009,-312.85701463,0.00054794,120]
[321438178,1712190680018,-506.32092313,0.00054794,120]
[321438179,1712190680027,-5381.38,0.00054794,120]
[321438180,1712190680037,-688.67,0.00054794,120]
[321438181,1712190680046,-500.0,0.00054794,120]
[321438182,1712190680055,-514.77209195,0.00054794,120]
[321438183,1712190680065,-500.0,0.00054794,120]
[321438184,1712190680075,-500.0,0.00054794,120]
[321438185,1712190680086,-643.76,0.00054794,120]
[321438186,1712190680095,-500.0,0.00054794,120]
[321438187,1712190680106,-500.0,0.00054794,120]
[321438188,1712190680118,-500.0,0.00054794,120]
[321438189,1712190680128,-6322.62,0.00054794,120]
[321438190,1712190680138,-481.9493303,0.00054794,120]
[321438191,1712190680148,-15845.22,0.00054794,120]
[321438192,1712190680159,-500.0,0.00054794,120]
[321438193,1712190680170,-506.95234454,0.00054794,120]
[321438194,1712190680180,-1847.39,0.00054794,120]
[321438195,1712190680189,-500.0,0.00054794,120]
[321438196,1712190680199,-500.0,0.00054794,120]
[321438197,1712190680208,-1830.15,0.00054794,7]
[321438198,1712190680217,-509.76848421,0.00054794,120]
[321438199,1712190680226,-500.0,0.00054794,120]
[321438200,1712190680235,-524.79127473,0.00054794,120]
[321438201,1712190680244,-503.99004899,0.00054794,120]
[321438202,1712190680254,-500.0,0.00054794,120]
[321438203,1712190680263,-500.0,0.00054794,120]
[321438204,1712190680272,-3208.85,0.00054794,120]
[321438205,1712190680281,-505.43292976,0.00054794,120]
[321438206,1712190680290,-500.0,0.00054794,120]
[321438207,1712190680300,-513.17087907,0.00054794,120]
[321438208,1712190680309,-502.67080247,0.00054794,120]
[321438209,1712190680318,-938.84,0.00054794,120]
[321438210,1712190680327,-2775.04,0.00054794,120]
[321438211,1712190680337,-8674.69,0.00054794,120]
[321438212,1712190680346,-571.59,0.00054794,120]
[321438213,1712190680356,-500.0,0.00054794,120]
[321438214,1712190680364,-612.67,0.00054794,120]
[321438215,1712190680373,-2348.38,0.00054794,120]
[321438216,1712190680382,-1633.6,0.00054794,120]
[321438217,1712190680391,-525.51817211,0.00054794,120]
[321438218,1712190680400,-572.28,0.00054794,120]
[321438219,1712190680410,-500.0,0.00054794,120]
[321438220,1712190680419,-2290.96,0.00054794,120]
[321438221,1712190680431,-1199.55,0.00054794,120]
[321438222,1712190680441,-753.5,0.00054794,120]
[321438223,1712190680450,-500.0,0.00054794,120]
[321438224,1712190680459,-895.86,0.00054794,120]
[321438225,1712190680469,-1230.34,0.00054794,120]
[321438226,1712190680479,-3663.13,0.00054794,120]
[321438227,1712190680488,-2341.82,0.00054794,120]
[321438228,1712190680498,-3202.53,0.00054794,120]
[321438229,1712190680508,-901.12,0.00054794,120]
[321438230,1712190680518,-3000.0,0.00054794,120]
[321438231,1712190680527,-729.75,0.00054794,120]
[321438232,1712190680537,-500.0,0.00054794,120]
[321438233,1712190680549,-2610.4,0.00054794,120]
[321438234,1712190680558,-500.0,0.00054794,120]
[321438235,1712190680568,-500.0,0.00054794,120]
[321438236,1712190680578,-500.0,0.00054794,120]
[321438237,1712190680587,-500.0,0.00054794,120]
[321438238,1712190680596,-506.52811703,0.00054794,120]
[321438239,1712190680608,-500.0,0.00054794,120]
[321438240,1712190680617,-870.02,0.00054794,120]
[321438241,1712190680627,-1664.02,0.00054794,120]
[321438242,1712190680637,-1542.22,0.00054794,120]
[321438243,1712190680647,-500.0,0.00054794,120]
[321438244,1712190680657,-2972.47,0.00054794,120]
[321438245,1712190680666,-3838.66,0.00054794,120]
[321438246,1712190680676,-503.92121871,0.00054794,120]
[321438247,1712190680686,-500.0,0.00054794,120]
[321438248,1712190680696,-500.0,0.00054794,120]
[321438249,1712190680705,-500.0,0.00054794,120]
[321438250,1712190680715,-500.0,0.00054794,120]
[321438251,1712190680725,-1633.68,0.00054794,120]
[321438252,1712190680736,-1832.74,0.00054794,120]
[321438253,1712190680746,-3692.77,0.00054794,120]
[321438254,1712190680756,-923.66,0.00054794,120]
[321438255,1712190680766,-500.0,0.00054794,120]
[321438256,1712190680776,-3266.0,0.00054794,120]
[321438257,1712190680786,-506.57556221,0.00054794,120]
[321438258,1712190680796,-500.0,0.00054794,120]
[321438259,1712190680806,-505.48463941,0.00054794,120]
[321438260,1712190680816,-500.0,0.00054794,120]
[321438261,1712190680826,-988.36,0.00054794,120]
[321438262,1712190680836,-1000.0,0.00054794,14]
[321438263,1712190680846,-500.0,0.00054794,120]
[321438264,1712190680860,-2611.37,0.00054794,120]
[321438265,1712190680869,-500.0,0.00054794,120]
[321438266,1712190680879,-500.0,0.00054794,120]
[321438267,1712190680888,-881.43,0.00054794,120]
[321438268,1712190680898,-554.37,0.00054794,120]
[321438269,1712190680908,-512.98882508,0.00054794,120]
[321438270,1712190680918,-2383.91,0.00054794,120]
[321438271,1712190680928,-769.75,0.00054794,120]
[321438272,1712190680937,-1456.48,0.00054794,120]
[321438273,1712190680946,-506.7321086,0.00054794,120]
[321438274,1712190680955,-500.0,0.00054794,120]
[321438275,1712190680965,-500.0,0.00054794,120]
[321438276,1712190680974,-2697.48,0.00054794,120]
[321438277,1712190680984,-3057.34,0.00054794,120]
[321438278,1712190680994,-500.0,0.00054794,120]
[321438279,1712190681003,-500.0,0.00054794,120]
[321438280,1712190681014,-500.0,0.00054794,120]
[321438281,1712190681024,-2046.74,0.00054794,120]
[321438282,1712190681034,-1187.42,0.00054794,120]
[321438283,1712190681044,-14170.27,0.00054794,120]
[321438284,1712190681053,-3919.97,0.00054794,120]
[321438285,1712190681062,-500.0,0.00054794,120]
[321438286,1712190681076,-500.0,0.00054794,120]
[321438287,1712190681085,-1612.04,0.00054794,120]
[321438288,1712190681095,-500.0,0.00054794,120]
[321438289,1712190681107,-500.0,0.00054794,120]
[321438290,1712190681116,-500.0,0.00054794,120]
[321438291,1712190681125,-500.0,0.00054794,120]
[321438292,1712190681135,-500.0,0.00054794,120]
[321438293,1712190681144,-500.0,0.00054794,120]
[321438294,1712190681155,-2691.76,0.00054794,120]
[321438295,1712190681164,-500.0,0.00054794,120]
[321438296,1712190681173,-514.20142991,0.00054794,120]
[321438297,1712190681183,-899.75,0.00054794,120]
[321438298,1712190681192,-500.0,0.00054794,120]
[321438299,1712190681201,-751.45,0.00054794,120]
[321438300,1712190681211,-657.28,0.00054794,120]
[321438301,1712190681220,-500.0,0.00054794,120]
[321438302,1712190681229,-571.26,0.00054794,120]
[321438303,1712190681239,-507.91153287,0.00054794,120]
[321438304,1712190681248,-2478.42,0.00054794,120]
[321438305,1712190681258,-817.0,0.00054794,120]
[321438306,1712190681267,-503.94151964,0.00054794,120]
[321438307,1712190681277,-4961.7,0.00054794,120]
[321438308,1712190681286,-500.0,0.00054794,120]
[321438309,1712190681294,-500.0,0.00054794,120]
[321438310,1712190681304,-2984.35,0.00054794,120]
[321438311,1712190681313,-679.51,0.00054794,120]
[321438312,1712190681322,-500.0,0.00054794,120]
[321438313,1712190681332,-600.0,0.00054794,2]
[321438314,1712190681341,-440.72411263,0.00054794,120]
[321438315,1712190681350,-1384.73,0.00054794,120]
[321438316,1712190681362,-2343.79,0.00054794,120]
[321438317,1712190681371,-562.78,0.00054794,120]
[321438318,1712190681381,-6695.59,0.00054794,120]
[321438319,1712190681390,-39804.86,0.00054794,120]
[321438320,1712190681400,-734.72,0.00054794,120]
[321438321,1712190681409,-1228.9,0.00054794,120]
[321438322,1712190681419,-500.0,0.00054794,120]
[321438323,1712190681428,-504.12993072,0.00054794,120]
[321438324,1712190681437,-15326.48,0.00054794,120]
[321438325,1712190681447,-1931.84,0.00054794,120]
[321438326,1712190681456,-501.84222635,0.00054794,120]
[321438327,1712190681466,-525.19,0.00054794,120]
[321438328,1712190681486,-534.48868957,0.00054794,120]
[321438329,1712190681497,-500.0,0.00054794,120]
[321438330,1712190681507,-500.0,0.00054794,120]
[321438331,1712190681522,-1000.0,0.00054794,120]
[321438332,1712190681533,-649.5,0.00054794,120]
[321438333,1712190681543,-500.0,0.00054794,120]
[321438334,1712190681554,-2804.52,0.00054794,120]
[321438335,1712190681565,-3255.55,0.00054794,120]
[321438336,1712190681576,-507.78656315,0.00054794,120]
[321438337,1712190681586,-1055.26,0.00054794,120]
[321438338,1712190681597,-4501.92,0.00054794,120]
[321438339,1712190681607,-500.0,0.00054794,120]
[321438340,1712190681618,-500.0,0.00054794,120]
[321438341,1712190681627,-507.79268836,0.00054794,120]
[321438342,1712190681638,-1991.29,0.00054794,120]
[321438343,1712190681649,-505.40498685,0.00054794,120]
[321438344,1712190681660,-3921.47,0.00054794,120]
[321438345,1712190681670,-5711.44,0.00054794,120]
[321438346,1712190681680,-918.29,0.00054794,120]
[321438347,1712190681691,-500.34740674,0.00054794,120]
[321438348,1712190681702,-429.48758441,0.00054794,120]
[321438349,1712190681713,-8672.5,0.00054794,120]
[321438350,1712190681724,-500.0,0.00054794,120]
[321438351,1712190681734,-4454.06,0.00054794,120]
[321438352,1712190681745,-529.02666222,0.00054794,120]
[321438353,1712190681756,-762.57,0.00054794,120]
[321438354,1712190681766,-500.0,0.00054794,120]
[321438355,1712190681776,-4843.26,0.00054794,120]
[321438356,1712190681785,-1668.52,0.00054794,7]
[321438357,1712190681796,-1184.27,0.00054794,120]
[321438358,1712190681807,-515.62287532,0.00054794,120]
[321438359,1712190681818,-507.86166372,0.00054794,120]
[321438360,1712190681829,-4643.2,0.00054794,120]
[321438361,1712190681839,-512.32267161,0.00054794,120]
[321438362,1712190681851,-5683.9,0.00054794,120]
[321438363,1712190681864,-5683.9,0.00054794,120]
[321438364,1712190681874,-2049.6,0.00054794,120]
[321438365,1712190681883,-5683.9,0.00054794,120]
[321438366,1712190681893,-500.0,0.00054794,120]
[321438367,1712190681903,-500.0,0.00054794,120]
[321438368,1712190681912,-5683.9,0.00054794,120]
[321438369,1712190681922,-5683.9,0.00054794,120]
[321438370,1712190681932,-5683.9,0.00054794,120]
[321438371,1712190681943,-530.57,0.00054794,120]
[321438372,1712190681953,-912.43,0.00054794,120]
[321438373,1712190681964,-5683.9,0.00054794,120]
[321438374,1712190681974,-5683.9,0.00054794,120]
[321438375,1712190681984,-5683.9,0.00054794,120]
[321438376,1712190681994,-3564.26,0.00054794,120]
[321438377,1712190682004,-5683.9,0.00054794,120]
[321438378,1712190682016,-5683.9,0.00054794,120]
[321438379,1712190682026,-4326.4,0.00054794,120]
[321438380,1712190682037,-508.43084077,0.00054794,120]
[321438381,1712190682047,-5683.9,0.00054794,120]
[321438382,1712190682058,-500.0,0.00054794,120]
[321438383,1712190682068,-5683.9,0.00054794,120]
[321438384,1712190682081,-500.0,0.00054794,120]
[321438385,1712190682092,-5683.9,0.00054794,120]
[321438386,1712190682102,-5683.9,0.00054794,120]
[321438387,1712190682114,-775.35,0.00054794,120]
[321438388,1712190682125,-5683.9,0.00054794,120]
[321438389,1712190682136,-5683.9,0.00054794,120]
[321438390,1712190682146,-5683.9,0.00054794,120]
[321438391,1712190682157,-507.79816334,0.00054794,120]
[321438392,1712190682167,-5683.9,0.00054794,120]
[321438393,1712190682178,-500.0,0.00054794,120]
[321438394,1712190682188,-5683.9,0.00054794,120]
[321438395,1712190682198,-5683.9,0.00054794,120]
[321438396,1712190682209,-5683.9,0.00054794,120]
[321438397,1712190682219,-7314.89,0.00054794,120]
[321438398,1712190682229,-7432.69,0.00054794,120]
[321438399,1712190682239,-5683.9,0.00054794,120]
[321438400,1712190682249,-4339.54,0.00054794,120]
[321438401,1712190682455,-5684.00090655,0.00054794,120]
[321438402,1712190682466,-503.90686109,0.00054794,120]
[321438403,1712190682476,-500.0,0.00054794,120]
[321438404,1712190682486,-500.0,0.00054794,120]
[321438405,1712190682523,-5950.72,0.00054794,120]
[321438406,1712190682534,-500.0,0.00054794,120]
[321438407,1712190682544,-4630.91,0.00054794,120]
[321438408,1712190682553,-500.0,0.00054794,120]
[321438409,1712190682562,-500.0,0.00054794,120]
[321438410,1712190682572,-500.0,0.00054794,120]
[321438411,1712190682581,-500.0,0.00054794,120]
[321438412,1712190682592,-1941.18,0.00054794,120]
[321438413,1712190682602,-1646.81,0.00054794,120]
[321438414,1712190682613,-779.43,0.00054794,120]
[321438415,1712190682623,-500.0,0.00054794,120]
[321438416,1712190682633,-500.0,0.00054794,120]
[321438417,1712190682644,-500.0,0.00054794,120]
[321438418,1712190682653,-2787.23,0.00054794,120]
[321438419,1712190682664,-1227.31,0.00054794,120]
[321438420,1712190682673,-500.0,0.00054794,120]
[321438421,1712190682684,-675.44,0.00054794,120]
[321438422,1712190682693,-1227.31,0.00054794,120]
[321438423,1712190682704,-1227.31,0.00054794,120]
[321438424,1712190682714,-1227.31,0.00054794,120]
[321438425,1712190682724,-1227.31,0.00054794,120]
[321438426,1712190682734,-1227.31,0.00054794,120]
[321438427,1712190682744,-1227.31,0.00054794,120]
[321438428,1712190682754,-500.0,0.00054794,120]
[321438429,1712190682764,-1227.31,0.00054794,120]
[321438430,1712190682774,-1227.31,0.00054794,120]
[321438431,1712190682784,-500.0,0.00054794,120]
[321438432,1712190682793,-990.77,0.00054794,120]
[321438433,1712190682803,-1227.31,0.00054794,120]
[321438434,1712190682813,-1227.31,0.00054794,120]
[321438435,1712190682822,-1227.31,0.00054794,120]
[321438436,1712190682832,-1227.31,0.00054794,120]
[321438437,1712190682842,-1067.21,0.00054794,120]
[321438438,1712190682852,-1227.31,0.00054794,120]
[321438439,1712190682862,-500.0,0.00054794,120]
[321438440,1712190682872,-1635.36,0.00054794,120]
[321438441,1712190682882,-1227.31,0.00054794,120]
[321438442,1712190682891,-22267.69,0.00054794,120]
[321438443,1712190682901,-1227.31,0.00054794,120]
[321438444,1712190682912,-1227.31,0.00054794,120]
[321438445,1712190682922,-1227.31,0.00054794,120]
[321438446,1712190682931,-1227.31,0.00054794,120]
[321438447,1712190682940,-1227.31,0.00054794,120]
[321438448,1712190682949,-1227.31,0.00054794,120]
[321438449,1712190682958,-2122.98,0.00054794,21]
[321438450,1712190682968,-1227.31,0.00054794,120]
[321438451,1712190682978,-1227.31,0.00054794,120]
[321438452,1712190682989,-1227.32768089,0.00054794,120]
[321438453,1712190682999,-511.24,0.00054794,120]
[321438454,1712190683010,-500.0,0.00054794,120]
[321438455,1712190683019,-1284.38,0.00054794,120]
[321438456,1712190683029,-2195.47,0.00054794,120]
[321438457,1712190683039,-2715.8,0.00054794,120]
[321438458,1712190683047,-500.0,0.00054794,120]
[321438459,1712190683057,-1327.49,0.00054794,120]
[321438460,1712190683066,-352.83566176,0.00054794,2]
[321438461,1712190683079,-513.93561521,0.00054794,120]
[321438462,1712190683088,-500.0,0.00054794,120]
[321438463,1712190683097,-868.5,0.00054794,120]
[321438464,1712190683106,-1765.59,0.00054794,120]
[321438465,1712190683116,-2844.38,0.00054794,120]
[321438466,1712190683126,-500.0,0.00054794,2]
[321438467,1712190683135,-500.0,0.00054794,120]
[321438468,1712190683144,-1632.35,0.00054794,120]
[321438469,1712190683155,-500.0,0.00054794,120]
[321438470,1712190683164,-500.0,0.00054794,120]
[321438471,1712190683173,-551.7481468,0.00054794,120]
[321438472,1712190683182,-700.69,0.00054794,120]
[321438473,1712190683192,-500.0,0.00054794,120]
[321438474,1712190683203,-1776.74,0.00054794,120]
[321438475,1712190683214,-1803.32,0.00054794,120]
[321438476,1712190683225,-500.0,0.00054794,120]
[321438477,1712190683234,-500.0,0.00054794,120]
[321438478,1712190683244,-1892.19,0.00054794,120]
[321438479,1712190683253,-515.21200817,0.00054794,120]
[321438480,1712190683262,-5000.0,0.00054794,120]
[321438481,1712190683271,-3126.11,0.00054794,120]
[321438482,1712190683280,-505.15470122,0.00054794,120]
[321438483,1712190683289,-2784.63,0.00054794,120]
[321438484,1712190683299,-3000.0,0.00054794,120]
[321438485,1712190683307,-3323.22,0.00054794,120]
[321438486,1712190683318,-3312.34,0.00054794,120]
[321438487,1712190683329,-5309.75,0.00054794,120]
[321438488,1712190683339,-546.4803337,0.00054794,120]
[321438489,1712190683349,-836.08,0.00054794,120]
[321438490,1712190683358,-4538.71,0.00054794,120]
[321438491,1712190683367,-502.37099176,0.00054794,120]
[321438492,1712190683376,-500.0,0.00054794,120]
[321438493,1712190683385,-1890.49,0.00054794,120]
[321438494,1712190683394,-500.0,0.00054794,120]
[321438495,1712190683403,-13400.33,0.00054794,120]
[321438496,1712190683413,-2056.95,0.00054794,120]
[321438497,1712190683422,-13400.33,0.00054794,120]
[321438498,1712190683431,-13400.33,0.00054794,120]
[321438499,1712190683440,-13400.33,0.00054794,120]
[321438500,1712190683449,-1278.63,0.00054794,120]
[321438501,1712190683458,-873.47,0.00054794,120]
[321438502,1712190683467,-13400.33,0.00054794,120]
[321438503,1712190683476,-500.0,0.00054794,120]
[321438504,1712190683485,-13400.33,0.00054794,120]
[321438505,1712190683494,-13400.33,0.00054794,120]
[321438506,1712190683503,-500.0,0.00054794,120]
[321438507,1712190683513,-13400.33,0.00054794,120]
[321438508,1712190683522,-500.0,0.00054794,120]
[321438509,1712190683532,-13400.33,0.00054794,120]
[321438510,1712190683541,-5629.68,0.00054794,120]
[321438511,1712190683550,-13400.33,0.00054794,120]
[321438512,1712190683559,-3860.65,0.00054794,120]
[321438513,1712190683568,-2020.42,0.00054794,120]
[321438514,1712190683577,-13400.33,0.00054794,120]
[321438515,1712190683586,-500.0,0.00054794,120]
[321438516,1712190683596,-500.0,0.00054794,120]
[321438517,1712190683605,-13400.33,0.00054794,120]
[321438518,1712190683616,-13400.33,0.00054794,120]
[321438519,1712190683626,-13400.33,0.00054794,120]
[321438520,1712190683645,-13400.33,0.00054794,120]
[321438521,1712190683667,-500.0,0.00054794,120]
[321438522,1712190683686,-13400.33,0.00054794,120]
[321438523,1712190683707,-6016.54,0.00054794,120]
[321438524,1712190683724,-13400.33,0.00054794,120]
[321438525,1712190683743,-6016.54,0.00054794,120]
[321438526,1712190683763,-13400.33,0.00054794,120]
[321438527,1712190683780,-6016.54,0.00054794,120]
[321438528,1712190683798,-13400.33,0.00054794,120]
[321438529,1712190683815,-6016.54,0.00054794,120]
[321438530,1712190683834,-13400.33,0.00054794,120]
[321438531,1712190683855,-6016.54,0.00054794,120]
[321438532,1712190683870,-500.0,0.00054794,120]
[321438533,1712190683887,-6016.54,0.00054794,120]
[321438534,1712190683904,-6016.54,0.00054794,120]
[321438535,1712190683918,-13400.33,0.00054794,120]
[321438536,1712190683934,-6016.54,0.00054794,120]
[321438537,1712190683950,-13400.33,0.00054794,120]
[321438538,1712190683966,-13400.33,0.00054794,120]
[321438539,1712190683981,-6016.54,0.00054794,120]
[321438540,1712190683997,-6016.54,0.00054794,120]
[321438541,1712190684012,-13400.43215114,0.00054794,120]
[321438542,1712190684027,-500.0,0.00054794,2]
[321438543,1712190684042,-6016.54,0.00054794,120]
[321438544,1712190684057,-1629.02,0.00054794,120]
[321438545,1712190684073,-6016.54,0.00054794,120]
[321438546,1712190684088,-506.604401,0.00054794,120]
[321438547,1712190684103,-6016.54,0.00054794,120]
[321438548,1712190684120,-6016.54,0.00054794,120]
[321438549,1712190684135,-500.0,0.00054794,120]
[321438550,1712190684150,-591.17,0.00054794,120]
[321438551,1712190684165,-2185.74,0.00054794,120]
[321438552,1712190684179,-6016.54,0.00054794,120]
[321438553,1712190684193,-6016.54,0.00054794,120]
[321438554,1712190684208,-6016.54,0.00054794,120]
[321438555,1712190684222,-6016.54,0.00054794,120]
[321438556,1712190684237,-503.01381616,0.00054794,120]
[321438557,1712190684252,-2282.83,0.00054794,120]
[321438558,1712190684267,-6016.54,0.00054794,120]
[321438559,1712190684281,-500.0,0.00054794,120]
[321438560,1712190684295,-506.72465766,0.00054794,120]
[321438561,1712190684309,-500.0,0.00054794,120]
[321438562,1712190684324,-749.89,0.00054794,120]